bitfinex/quotes_BTCUSD_20220101
["timestamp","ask_amount","ask_price","bid_price","bid_amount"]
[1641038233724,0.02136375,46802.0,46801.0,1.02151862]
[1641038234524,6.375e-05,46802.0,46801.0,1.02151862]
[1641038234728,0.10928433,46806.0,46801.0,0.76803461]
[1641038234925,0.10928433,46806.0,46802.0,0.066761]
[1641038234926,0.20928433,46806.0,46802.0,0.066761]
[1641038235181,0.1,46803.0,46802.0,0.066761]
[1641038235582,0.10928433,46806.0,46802.0,0.066761]
[1641038235777,0.10928433,46806.0,46802.0,0.34802295]
[1641038235978,0.10928433,46806.0,46802.0,0.40143595]
[1641038236784,0.10928433,46806.0,46802.0,0.08643506]
[1641038237284,0.1,46803.0,46802.0,0.01967406]
[1641038237882,0.1,46803.0,46802.0,0.01922406]
[1641038238281,0.590983,46803.0,46802.0,0.01922406]
[1641038238581,0.440983,46803.0,46802.0,0.01922406]
[1641038238830,0.1,46803.0,46802.0,0.01922406]
[1641038239231,0.1,46803.0,46801.0,0.06902383]
[1641038240832,0.1,46803.0,46802.0,0.53886164]
[1641038241031,0.1,46803.0,46802.0,0.24886164]
[1641038241632,0.10928433,46806.0,46802.0,0.24886164]
[1641038242032,0.1,46803.0,46802.0,0.29886164]
[1641038242234,0.10928433,46806.0,46802.0,0.54886164]
[1641038242679,0.20928433,46806.0,46802.0,0.54886164]
[1641038242878,0.20928433,46806.0,46802.0,0.56784571]
[1641038243480,0.21928433,46806.0,46802.0,0.56784571]
[1641038243778,0.21928433,46806.0,46802.0,0.54886164]
[1641038243979,0.21928433,46806.0,46803.0,0.340983]
[1641038244181,0.1,46804.0,46803.0,0.340983]
[1641038244885,0.1,46804.0,46803.0,0.36090238]
[1641038245082,0.21928433,46806.0,46803.0,0.36090238]
[1641038245281,0.24084556,46806.0,46803.0,0.36090238]
[1641038245683,0.24084556,46806.0,46803.0,0.01991938]
[1641038245884,0.1,46804.0,46803.0,0.03034385]
[1641038247732,0.25,46804.0,46801.0,0.06902383]
[1641038247929,0.15,46802.0,46801.0,0.06902383]
[1641038248130,0.490983,46802.0,46801.0,0.06902383]
[1641038249131,0.50933025,46802.0,46801.0,0.06902383]
[1641038249331,0.35933025,46802.0,46801.0,0.06902383]
[1641038249936,0.01334725,46802.0,46801.0,0.06902383]
[1641038250775,0.1,46804.0,46801.0,0.06902383]
[1641038251976,0.41573489,46804.0,46801.0,0.06902383]
[1641038252180,0.340983,46803.0,46801.0,0.06902383]
[1641038252575,0.10125663,46804.0,46801.0,0.06902383]
[1641038252776,0.053428,46803.0,46801.0,0.06902383]
[1641038253376,0.340983,46802.0,46801.0,0.06902383]
[1641038254426,0.10125663,46804.0,46801.0,0.06902383]
[1641038254626,0.1,46804.0,46801.0,0.06902383]
[1641038255424,0.1,46804.0,46802.0,0.25170707]
[1641038255626,0.70033696,46805.0,46802.0,0.25170707]
[1641038255826,0.21928433,46806.0,46802.0,2.96206234]
[1641038256025,0.21928433,46806.0,46803.0,0.340983]
[1641038256924,0.1,46804.0,46803.0,0.35926636]
[1641038257124,0.21928433,46806.0,46803.0,0.35926636]
[1641038257591,0.70033696,46813.0,46812.0,0.00123934]
[1641038257592,0.68471196,46813.0,46812.0,0.00123934]
[1641038257982,0.00903311,46825.0,46812.0,0.00123934]
[1641038258187,0.81705979,46822.0,46812.0,0.00123934]
[1641038258385,0.81705979,46822.0,46813.0,0.25952739]
[1641038258583,0.81705979,46822.0,46821.0,0.27664604]
[1641038258884,0.1,46824.0,46821.0,0.32664604]
[1641038259887,0.1,46824.0,46822.0,0.340983]
[1641038260088,0.1,46824.0,46821.0,0.01830065]
[1641038261331,0.1,46824.0,46819.0,0.33361244]
[1641038261530,0.01153475,46829.0,46820.0,0.340983]
[1641038261733,0.1,46821.0,46819.0,0.33361244]
[1641038261933,0.1,46821.0,46820.0,0.340983]
[1641038262335,0.1,46821.0,46820.0,0.63633811]
[1641038262535,0.1,46821.0,46820.0,0.340983]
[1641038262937,0.1,46821.0,46820.0,0.36165485]
[1641038264037,0.1,46821.0,46820.0,0.04236601]
[1641038264238,0.1,46821.0,46820.0,0.02169416]
[1641038264637,0.440983,46821.0,46820.0,0.02169416]
[1641038265082,0.81749312,46821.0,46820.0,0.02169416]
[1641038265279,0.594392,46821.0,46813.0,0.28675718]
[1641038265475,0.1,46814.0,46813.0,0.28675718]
[1641038266375,0.25,46814.0,46810.0,0.02195707]
[1641038266576,0.1,46811.0,46810.0,0.02195707]
[1641038267175,0.1,46811.0,46806.0,0.32051981]
[1641038267376,0.1,46811.0,46808.0,0.25016845]
[1641038267575,0.1,46811.0,46809.0,0.066698]
[1641038269529,0.1,46811.0,46810.0,0.340983]
[1641038269730,0.40438962,46811.0,46808.0,0.01871116]
[1641038269935,0.1,46811.0,46808.0,0.01871116]
[1641038270130,0.1,46811.0,46808.0,0.03679138]
[1641038270131,0.2,46811.0,46808.0,0.03679138]
[1641038270331,0.340983,46810.0,46808.0,0.01808022]
[1641038270531,0.15,46809.0,46808.0,0.01808022]
[1641038271435,0.053427,46808.0,46806.0,0.21928433]
[1641038271631,0.15,46807.0,46806.0,0.21928433]
[1641038271832,0.25,46807.0,46806.0,0.21928433]
[1641038273688,0.5480069,46807.0,46806.0,0.21928433]
[1641038273887,0.6480069,46807.0,46806.0,0.21928433]
[1641038274387,0.9889899,46807.0,46806.0,0.21928433]
[1641038275487,1.0889899,46807.0,46806.0,0.21928433]
[1641038276725,0.9889899,46807.0,46806.0,0.21928433]
[1641038276924,1.0889899,46807.0,46806.0,0.21928433]
[1641038277125,1.10722422,46807.0,46806.0,0.21928433]
[1641038277325,1.5871143,46807.0,46806.0,0.21928433]
[1641038278827,1.58998741,46807.0,46806.0,0.21928433]
[1641038279029,1.48998741,46807.0,46806.0,0.21928433]
[1641038279329,1.0918971,46807.0,46806.0,0.21928433]
[1641038279530,0.61200702,46807.0,46806.0,0.21928433]
[1641038279739,1.21315519,46807.0,46806.0,0.21928433]
[1641038280180,1.2330297,46807.0,46806.0,0.21928433]
[1641038280380,0.61085751,46807.0,46806.0,0.21928433]
[1641038281577,0.590983,46807.0,46806.0,0.21928433]
[1641038281776,0.70114817,46810.0,46806.0,0.21928433]
[1641038281777,0.70114817,46810.0,46806.0,0.26928433]
[1641038282076,0.1,46808.0,46806.0,0.31928433]
[1641038282277,0.15,46807.0,46806.0,0.21928433]
[1641038283477,0.15,46807.0,46806.0,0.21428433]
[1641038283681,0.00903307,46812.0,46806.0,0.65526733]
[1641038283934,0.00903307,46812.0,46807.0,0.06671]
[1641038284135,0.1,46808.0,46807.0,0.06671]
[1641038284634,0.1,46808.0,46807.0,0.34671]
[1641038284833,0.15,46808.0,46807.0,0.06671]
[1641038285034,0.25,46808.0,46807.0,0.06671]
[1641038285838,0.44782677,46808.0,46807.0,0.06671]
[1641038286037,0.44782677,46808.0,46806.0,0.2325374]
[1641038286038,0.54782677,46808.0,46806.0,0.2325374]
[1641038286241,0.14927559,46807.0,46806.0,0.2325374]
[1641038286436,0.14927559,46807.0,46806.0,0.21428433]
[1641038286837,0.49025859,46807.0,46806.0,0.21428433]
[1641038287040,0.91543872,46807.0,46806.0,0.21428433]
[1641038287239,0.64368359,46807.0,46806.0,0.21428433]
[1641038287442,0.93830577,46807.0,46806.0,0.21428433]
[1641038287703,0.93871229,46807.0,46806.0,0.21428433]
[1641038288300,0.91907917,46807.0,46806.0,0.21428433]
[1641038288504,1.21813812,46807.0,46806.0,0.21428433]
[1641038288907,0.91907917,46807.0,46806.0,0.21428433]
[1641038291113,1.21402932,46807.0,46806.0,0.21428433]
[1641038292329,2.03203552,46807.0,46806.0,0.21428433]
[1641038292528,1.73708537,46807.0,46806.0,0.21428433]
[1641038292928,0.91907917,46807.0,46806.0,0.21428433]
[1641038293129,1.22385045,46807.0,46806.0,0.21428433]
[1641038293529,1.32385045,46807.0,46806.0,0.21428433]
[1641038294930,1.31699141,46807.0,46806.0,0.21428433]
[1641038295179,1.01907917,46807.0,46806.0,0.21428433]
[1641038295778,0.81907917,46807.0,46806.0,0.21428433]
[1641038296378,1.11728119,46807.0,46806.0,0.21428433]
[1641038296579,1.11439926,46807.0,46806.0,0.21428433]
[1641038296883,0.81907917,46807.0,46806.0,0.21428433]
[1641038297079,1.21553298,46807.0,46806.0,0.21428433]
[1641038297580,1.21573047,46807.0,46806.0,0.21428433]
[1641038297779,1.21211438,46807.0,46806.0,0.21428433]
[1641038297979,0.91907917,46807.0,46806.0,0.21428433]
[1641038298582,1.0678653,46807.0,46806.0,0.21428433]
[1641038298823,1.21689616,46807.0,46806.0,0.21428433]
[1641038299625,0.94150058,46807.0,46806.0,0.21428433]
[1641038301427,1.23945647,46807.0,46806.0,0.21428433]
[1641038301625,0.94150058,46807.0,46806.0,0.21428433]
[1641038303184,0.94150058,46807.0,46806.0,0.18668433]
[1641038304885,0.94150058,46807.0,46806.0,0.17368433]
[1641038305285,1.2399624,46807.0,46806.0,0.17368433]
[1641038305783,0.94150058,46807.0,46806.0,0.17368433]
[1641038305987,1.23431745,46807.0,46806.0,0.17368433]
[1641038306186,0.94150058,46807.0,46806.0,0.17368433]
[1641038306726,1.23526554,46807.0,46806.0,0.17368433]
[1641038306926,1.23322454,46807.0,46806.0,0.17368433]
[1641038307128,0.94150058,46807.0,46806.0,0.17368433]
[1641038307326,1.23226369,46807.0,46806.0,0.17368433]
[1641038309030,2.05026989,46807.0,46806.0,0.17368433]
[1641038310282,1.75950678,46807.0,46806.0,0.17368433]
[1641038310780,0.94150058,46807.0,46806.0,0.17368433]
[1641038312882,0.84150058,46807.0,46806.0,0.17368433]
[1641038313085,0.94150058,46807.0,46806.0,0.17368433]
[1641038313383,0.84150058,46807.0,46806.0,0.17368433]
[1641038314336,0.78807558,46807.0,46806.0,0.17368433]
[1641038314937,0.78807558,46807.0,46806.0,0.16068433]
[1641038319189,1.08192731,46807.0,46806.0,0.16068433]
[1641038319388,0.78807558,46807.0,46806.0,0.16068433]
[1641038321535,1.1823092,46807.0,46806.0,0.16068433]
[1641038322539,1.59182874,46807.0,46806.0,0.16068433]
[1641038323138,0.88807558,46807.0,46806.0,0.16068433]
[1641038323739,1.18003031,46807.0,46806.0,0.16068433]
[1641038324540,0.88807558,46807.0,46806.0,0.16068433]
[1641038326183,1.18007223,46807.0,46806.0,0.16068433]
[1641038326483,0.88807558,46807.0,46806.0,0.16068433]
[1641038326886,1.59292615,46807.0,46806.0,0.16068433]
[1641038327686,0.88807558,46807.0,46806.0,0.16068433]
[1641038327885,1.17792116,46807.0,46806.0,0.16068433]
[1641038328084,0.88807558,46807.0,46806.0,0.16068433]
[1641038328583,1.18181601,46807.0,46806.0,0.16068433]
[1641038329436,0.65829038,46807.0,46806.0,0.16068433]
[1641038330537,0.95158246,46807.0,46806.0,0.16068433]
[1641038331945,1.48066054,46807.0,46806.0,0.16068433]
[1641038332343,0.65829038,46807.0,46806.0,0.16068433]
[1641038332781,0.95160273,46807.0,46806.0,0.16068433]
[1641038333779,0.65829038,46807.0,46806.0,0.16068433]
[1641038334381,1.36427578,46807.0,46806.0,0.16068433]
[1641038335081,0.65829038,46807.0,46806.0,0.16068433]
[1641038335283,0.95397285,46807.0,46806.0,0.16068433]
[1641038335481,0.85397285,46807.0,46806.0,0.16068433]
[1641038335682,0.95397285,46807.0,46806.0,0.16068433]
[1641038336082,0.55829038,46807.0,46806.0,0.16068433]
[1641038336331,0.65829038,46807.0,46806.0,0.16068433]
[1641038338335,1.3639238,46807.0,46806.0,0.16068433]
[1641038338935,1.2639238,46807.0,46806.0,0.16068433]
[1641038340279,1.55757422,46807.0,46806.0,0.16068433]
[1641038340680,1.65757422,46807.0,46806.0,0.16068433]
[1641038341080,0.65829038,46807.0,46806.0,0.16068433]
[1641038341480,0.94958296,46807.0,46806.0,0.16068433]
[1641038342485,0.94958296,46807.0,46801.0,0.06902383]
[1641038342486,0.16068433,46806.0,46801.0,0.06902383]
[1641038342684,0.94124355,46802.0,46801.0,0.06902383]
[1641038342883,0.99124355,46802.0,46801.0,0.06902383]
[1641038343085,1.14124355,46802.0,46801.0,0.06902383]
[1641038343282,1.14124355,46802.0,46801.0,0.06825383]
[1641038343283,1.42707048,46802.0,46801.0,0.06825383]
[1641038343485,2.41620461,46802.0,46799.0,0.00033]
[1641038343684,0.2,46798.0,46797.0,0.00504323]
[1641038343935,0.340983,46797.0,46795.0,0.00033]
[1641038344132,0.68001386,46796.0,46795.0,0.00033]
[1641038344530,0.78001386,46796.0,46795.0,0.00033]
[1641038345535,1.11487118,46796.0,46795.0,0.00033]
[1641038345736,1.34931882,46796.0,46795.0,0.00033]
[1641038346534,1.36832565,46796.0,46795.0,0.00033]
[1641038346733,1.35032322,46796.0,46795.0,0.00033]
[1641038347590,1.37229542,46796.0,46795.0,0.00033]
[1641038348482,1.33131639,46796.0,46795.0,0.00033]
[1641038348683,1.35221647,46796.0,46795.0,0.00033]
[1641038349183,1.03536158,46796.0,46795.0,0.00033]
[1641038349387,0.340983,46794.0,46792.0,0.00033]
[1641038349584,0.34218836,46792.0,46790.0,0.00044]
[1641038349785,0.340983,46791.0,46790.0,0.00044]
[1641038349983,0.335983,46791.0,46790.0,0.00044]
[1641038350182,0.435983,46791.0,46790.0,0.00044]
[1641038350382,0.57501386,46791.0,46790.0,0.00044]
[1641038350583,0.59459454,46791.0,46790.0,0.00044]
[1641038351630,0.61655485,46791.0,46790.0,0.00044]
[1641038351830,0.59697417,46791.0,46790.0,0.00044]
[1641038352232,0.49697417,46791.0,46790.0,0.00044]
[1641038352632,0.51750541,46791.0,46790.0,0.00044]
[1641038352832,0.4955451,46791.0,46790.0,0.00044]
[1641038353032,0.35651424,46791.0,46790.0,0.00044]
[1641038354234,0.03873069,46791.0,46790.0,0.00044]
[1641038354435,0.01819945,46791.0,46790.0,0.00044]
[1641038354834,0.02171532,46791.0,46790.0,0.00044]
[1641038355485,0.4483519,46791.0,46790.0,0.00044]
[1641038355880,0.52663658,46791.0,46790.0,0.00044]
[1641038356681,0.54753169,46791.0,46790.0,0.00044]
[1641038357683,0.56841041,46791.0,46790.0,0.00044]
[1641038357884,0.71983637,46791.0,46790.0,0.00044]
[1641038358687,0.5680155,46791.0,46790.0,0.00044]
[1641038358931,0.7197883,46791.0,46790.0,0.00044]
[1641038359130,0.54713678,46791.0,46790.0,0.00044]
[1641038359731,0.56688042,46791.0,46790.0,0.00044]
[1641038359931,0.54638022,46791.0,46790.0,0.00163889]
[1641038360131,0.341076,46790.0,46787.0,0.24866141]
[1641038360331,0.394531,46789.0,46787.0,0.24866141]
[1641038360531,0.15,46788.0,46787.0,0.24866141]
[1641038360731,0.491076,46788.0,46787.0,0.24866141]
[1641038361133,0.591076,46788.0,46787.0,0.24866141]
[1641038361535,0.541076,46788.0,46787.0,0.24866141]
[1641038362341,0.55984186,46788.0,46787.0,0.24866141]
[1641038362780,0.5784775,46788.0,46787.0,0.24866141]
[1641038362978,0.55971164,46788.0,46787.0,0.24866141]
[1641038363780,0.57806429,46788.0,46787.0,0.24866141]
[1641038363980,0.55942865,46788.0,46787.0,0.24866141]
[1641038364779,0.57810063,46788.0,46787.0,0.24866141]
[1641038364979,0.55974798,46788.0,46787.0,0.24866141]
[1641038365579,0.55974798,46788.0,46787.0,0.56721695]
[1641038365779,0.58159827,46788.0,46787.0,0.56721695]
[1641038365979,0.56292629,46788.0,46787.0,0.56721695]
[1641038367230,0.58164274,46788.0,46787.0,0.56721695]
[1641038367629,0.55979245,46788.0,46787.0,0.56721695]
[1641038367832,0.24053502,46788.0,46787.0,0.56721695]
[1641038368029,0.12181857,46788.0,46787.0,0.56721695]
[1641038368931,0.1,46788.0,46787.0,0.86295421]
[1641038369133,0.1,46788.0,46787.0,0.56721695]
[1641038369932,0.1,46788.0,46787.0,0.58827523]
[1641038370786,0.1,46788.0,46787.0,0.60761049]
[1641038370990,0.1,46788.0,46787.0,0.58655221]
[1641038371792,0.1,46788.0,46787.0,0.6064711]
[1641038371991,0.1,46788.0,46787.0,0.58713584]
[1641038372792,0.1,46788.0,46787.0,0.60629798]
[1641038372992,0.1,46788.0,46787.0,0.26782355]
[1641038374231,0.441076,46788.0,46787.0,0.26782355]
[1641038374637,0.541076,46788.0,46787.0,0.26782355]
[1641038375633,0.541076,46788.0,46787.0,0.24866141]
[1641038375836,0.55931835,46788.0,46787.0,0.24866141]
[1641038377587,0.55993388,46788.0,46787.0,0.24866141]
[1641038377981,0.57844328,46788.0,46787.0,0.24866141]
[1641038378183,0.5595854,46788.0,46787.0,0.24866141]
[1641038378584,0.4595854,46788.0,46787.0,0.24866141]
[1641038378782,0.57978489,46788.0,46787.0,0.24866141]
[1641038378982,0.56127549,46788.0,46787.0,0.24866141]
[1641038379786,0.58127804,46788.0,46787.0,0.24866141]
[1641038380185,0.56107855,46788.0,46787.0,0.24866141]
[1641038381087,0.541076,46788.0,46787.0,0.24866141]
[1641038382936,0.61054846,46788.0,46787.0,0.24866141]
[1641038383135,0.60930067,46788.0,46787.0,0.24866141]
[1641038383736,0.74833153,46788.0,46787.0,0.24866141]
[1641038383936,0.81875128,46788.0,46787.0,0.24866141]
[1641038384136,0.76875128,46788.0,46787.0,0.24866141]
[1641038384739,0.73010686,46788.0,46787.0,0.24866141]
[1641038384938,0.75086375,46788.0,46787.0,0.24866141]
[1641038385212,1.03979142,46788.0,46787.0,0.24866141]
[1641038386014,0.00374587,46787.0,46786.0,0.00022]
[1641038386213,0.58544154,46786.0,46784.0,0.00022]
[1641038386414,0.441076,46785.0,46784.0,0.00022]
[1641038386612,0.541076,46785.0,46784.0,0.00022]
[1641038387014,1.3818309,46785.0,46784.0,0.00022]
[1641038387911,1.40248861,46785.0,46784.0,0.00022]
[1641038388953,1.42247474,46785.0,46784.0,0.00022]
[1641038389150,1.40181703,46785.0,46784.0,0.00022]
[1641038389354,1.37800985,46785.0,46784.0,0.00022]
[1641038389753,1.88224642,46785.0,46784.0,0.00022]
[1641038389953,0.541076,46784.0,46782.0,0.00044]
[1641038390157,0.68010686,46783.0,46782.0,0.00044]
[1641038390556,0.541076,46780.0,46774.0,0.00044]
[1641038390754,0.58010686,46779.0,46774.0,0.00044]
[1641038391158,0.68010686,46779.0,46774.0,0.00044]
[1641038391758,1.72711116,46779.0,46774.0,0.00044]
[1641038391958,1.74642955,46779.0,46774.0,0.00044]
[1641038392984,2.7049306,46779.0,46774.0,0.00044]
[1641038393184,2.68561221,46779.0,46774.0,0.00044]
[1641038393385,2.48561221,46779.0,46774.0,0.00044]
[1641038393585,1.6457606,46779.0,46774.0,0.00044]
[1641038394086,0.6204741,46779.0,46774.0,0.00044]
[1641038394286,1.41768875,46779.0,46774.0,0.00044]
[1641038394686,1.64932954,46779.0,46774.0,0.00044]
[1641038395086,1.76833062,46779.0,46774.0,0.00044]
[1641038395289,1.74661282,46779.0,46774.0,0.00044]
[1641038395487,1.60758196,46779.0,46774.0,0.00044]
[1641038396088,1.62767801,46779.0,46774.0,0.00044]
[1641038396337,0.26836543,46778.0,46771.0,0.0003]
[1641038396538,0.053465,46775.0,46771.0,0.00011]
[1641038396737,0.053465,46775.0,46768.0,0.29253514]
[1641038397138,0.10693,46776.0,46768.0,0.29253514]
[1641038397339,0.1,46769.0,46767.0,0.00044]
[1641038397537,0.85281154,46773.0,46767.0,0.00044]
[1641038397739,0.341076,46772.0,46767.0,0.00044]
[1641038397940,0.1,46771.0,46767.0,0.00044]
[1641038398142,0.341076,46770.0,46767.0,0.00044]
[1641038398338,0.2,46772.0,46767.0,0.30607353]
[1641038398538,0.1,46769.0,46767.0,0.30607353]
[1641038399038,0.1,46769.0,46767.0,0.00044]
[1641038399339,0.341076,46768.0,46767.0,0.00044]
[1641038400187,0.46021293,46768.0,46767.0,0.00044]
[1641038400386,0.01913693,46768.0,46767.0,0.00044]
[1641038400985,0.10121698,46778.0,46767.0,0.341516]
[1641038400986,0.02297458,46778.0,46767.0,0.341516]
[1641038401187,0.0217576,46778.0,46768.0,0.38491984]
[1641038401387,0.0217576,46778.0,46768.0,0.43491984]
[1641038401585,0.0217576,46778.0,46776.0,0.33099397]
[1641038401886,0.24436554,46786.0,46777.0,0.29556874]
[1641038402086,0.24436554,46786.0,46777.0,0.39678031]
[1641038402887,0.24436554,46786.0,46777.0,0.34678031]
[1641038403088,0.24436554,46786.0,46777.0,0.36725875]
[1641038403489,0.24436554,46786.0,46784.0,0.28978067]
[1641038403490,0.34436554,46786.0,46784.0,0.28978067]
[1641038403689,0.13903086,46785.0,46784.0,0.28978067]
[1641038403933,0.13903086,46785.0,46777.0,0.34678031]
[1641038404134,0.34436554,46786.0,46777.0,0.36555919]
[1641038404336,0.34436554,46786.0,46778.0,0.341076]
[1641038404536,0.24436554,46786.0,46778.0,0.341076]
[1641038404735,0.24436554,46786.0,46781.0,0.26573838]
[1641038404937,0.24436554,46786.0,46782.0,0.38170845]
[1641038405537,0.24436554,46786.0,46784.0,0.2669736]
[1641038405937,0.24436554,46786.0,46778.0,0.01883098]
[1641038406137,0.24436554,46786.0,46782.0,0.02046018]
[1641038406341,0.1,46783.0,46782.0,0.02046018]
[1641038406537,0.341076,46783.0,46782.0,0.02046018]
[1641038406737,0.1,46785.0,46782.0,0.02046018]
[1641038406938,0.341076,46784.0,46782.0,0.02046018]
[1641038407138,0.24436554,46786.0,46782.0,0.02046018]
[1641038407438,0.24436554,46786.0,46780.0,0.27557138]
[1641038408113,0.24436554,46786.0,46780.0,0.32557138]
[1641038408316,0.24436554,46786.0,46781.0,0.341076]
[1641038408514,0.24436554,46786.0,46781.0,0.444515]
[1641038408715,0.24436554,46786.0,46784.0,0.29905105]
[1641038408916,0.24436554,46786.0,46785.0,0.071848]
[1641038409313,0.24436554,46786.0,46785.0,0.07333688]
[1641038409913,0.24436554,46786.0,46785.0,0.00148888]
[1641038411439,0.17251807,46786.0,46785.0,0.00275825]
[1641038411640,0.17251807,46786.0,46785.0,0.34383425]
[1641038411940,0.17251807,46786.0,46785.0,0.39383425]
[1641038412138,0.17251807,46786.0,46785.0,0.44383425]
[1641038412438,0.17251807,46786.0,46785.0,0.34383425]
[1641038412639,0.17251807,46786.0,46785.0,0.07457425]
[1641038413041,0.15981807,46786.0,46785.0,0.09310526]
[1641038414239,0.15981807,46786.0,46785.0,0.07457425]
[1641038414640,0.15981807,46786.0,46785.0,0.07330488]
[1641038414839,0.15981807,46786.0,46785.0,0.00148888]
[1641038415098,0.25981807,46786.0,46785.0,0.00148888]
[1641038415289,0.15981807,46786.0,46785.0,0.00148888]
[1641038416890,0.15981807,46786.0,46785.0,0.34256488]
[1641038418093,0.15981807,46786.0,46785.0,0.3638572]
[1641038419337,0.15981807,46786.0,46785.0,0.38218007]
[1641038419738,0.15981807,46786.0,46785.0,0.48218007]
[1641038419938,0.15981807,46786.0,46785.0,0.6758097]
[1641038420138,0.15981807,46786.0,46785.0,0.69616732]
[1641038420341,0.15981807,46786.0,46785.0,0.3629225]
[1641038421141,0.15981807,46786.0,46785.0,0.3841424]
[1641038421340,0.15981807,46786.0,46785.0,0.36378478]
[1641038422238,0.15981807,46786.0,46785.0,0.38468219]
[1641038422439,0.15981807,46786.0,46785.0,0.6581455]
[1641038422697,0.15981807,46786.0,46785.0,0.7081455]
[1641038423197,0.15981807,46786.0,46785.0,0.72904555]
[1641038423396,0.15981807,46786.0,46785.0,0.70814814]
[1641038423597,0.15981807,46786.0,46785.0,0.41346493]
[1641038423796,0.15981807,46786.0,46785.0,0.75403687]
[1641038423999,0.15981807,46786.0,46785.0,0.75899628]
[1641038424200,0.15981807,46786.0,46785.0,0.7773271]
[1641038424397,0.15981807,46786.0,46785.0,0.75642705]
[1641038424996,0.15981807,46786.0,46785.0,0.65642705]
[1641038425197,0.15981807,46786.0,46785.0,0.75642705]
[1641038425399,0.15981807,46786.0,46785.0,0.75772422]
[1641038425900,0.15981807,46786.0,46785.0,0.76104319]
[1641038426337,0.14982945,46786.0,46785.0,0.75757759]
[1641038427043,0.14982945,46786.0,46785.0,1.88657759]
[1641038427241,0.14982945,46786.0,46785.0,0.78108001]
[1641038427442,0.14982945,46786.0,46785.0,0.76289582]
[1641038427641,0.14982945,46786.0,46785.0,1.89189582]
[1641038428042,0.00374587,46787.0,46786.0,0.70982945]
[1641038428245,0.0090731,46791.0,46786.0,0.70982945]
[1641038428246,0.0090731,46791.0,46787.0,0.00374587]
[1641038428444,0.0090731,46791.0,46790.0,0.67026329]
[1641038428644,0.0090731,46791.0,46790.0,0.99025326]
[1641038428842,0.0090731,46791.0,46790.0,1.0909977]
[1641038429248,0.0090731,46791.0,46790.0,1.39337091]
[1641038429846,0.0090731,46791.0,46790.0,2.03453091]
[1641038430289,0.02360812,46796.0,46790.0,2.03453091]
[1641038430290,0.01998122,46796.0,46790.0,2.05568118]
[1641038430489,0.01998122,46796.0,46793.0,0.053426]
[1641038430689,0.01998122,46796.0,46794.0,0.37141394]
[1641038430889,0.1,46795.0,46794.0,0.071799]
[1641038431294,0.01998122,46796.0,46794.0,0.071799]
[1641038432090,0.01998122,46796.0,46795.0,0.28373304]
[1641038432292,0.01998122,46796.0,46795.0,0.62472704]
[1641038432691,0.11998122,46796.0,46795.0,0.62472704]
[1641038432893,0.01998122,46796.0,46795.0,0.340994]
[1641038433394,0.01998122,46796.0,46795.0,0.36683327]
[1641038434039,0.01998122,46796.0,46795.0,0.36832215]
[1641038434241,0.01998122,46796.0,46795.0,0.3894367]
[1641038434641,0.01998122,46796.0,46795.0,0.78145559]
[1641038434844,0.01998122,46796.0,46795.0,0.78271741]
[1641038435041,0.01998122,46796.0,46795.0,0.74077747]
[1641038435243,0.01998122,46796.0,46795.0,0.76010293]
[1641038435640,0.01998122,46796.0,46795.0,0.81352693]
[1641038436341,0.01998122,46796.0,46795.0,0.83415063]
[1641038436644,0.01998122,46796.0,46795.0,0.81482517]
[1641038437242,0.01998122,46796.0,46795.0,0.83294259]
[1641038437692,0.01998122,46796.0,46795.0,0.81231889]
[1641038438289,0.01998122,46796.0,46795.0,0.83402927]
[1641038438489,0.01998122,46796.0,46795.0,0.81591185]
[1641038439292,0.01998122,46796.0,46795.0,0.83657941]
[1641038439592,0.01998122,46796.0,46795.0,0.81486903]
[1641038440394,0.01998122,46796.0,46795.0,0.83387162]
[1641038440594,0.01998122,46796.0,46795.0,0.81320406]
[1641038441195,0.02645899,46798.0,46797.0,0.80242]
[1641038441446,1.899e-05,46798.0,46797.0,1.94984516]
[1641038441639,0.15925659,46806.0,46798.0,0.340972]
[1641038441842,0.16020351,46806.0,46803.0,1.129]
[1641038442040,0.11016348,46806.0,46805.0,1.200777]
[1641038442242,0.10109055,46806.0,46805.0,1.841737]
[1641038442440,0.10109055,46806.0,46805.0,1.94514]
[1641038443040,0.00242567,46816.0,46806.0,0.10109055]
[1641038443241,0.00242567,46816.0,46815.0,0.00125134]
[1641038443443,0.00242567,46816.0,46815.0,0.30944116]
[1641038443642,0.00242567,46816.0,46815.0,0.40944116]
[1641038443842,0.00485134,46816.0,46815.0,0.40944116]
[1641038444243,0.002,46819.0,46815.0,0.40944116]
[1641038444244,0.002,46819.0,46815.0,0.46283916]
[1641038444445,0.002,46819.0,46818.0,0.34203978]
[1641038444647,0.102,46819.0,46818.0,0.34203778]
[1641038444847,0.102,46819.0,46818.0,0.44203778]
[1641038445303,0.102,46819.0,46818.0,0.77449675]
[1641038446300,0.10127544,46819.0,46818.0,0.79256314]
[1641038446503,0.10127544,46819.0,46818.0,0.77330447]
[1641038446901,0.10127544,46819.0,46818.0,0.82670347]
[1641038447102,0.10127544,46819.0,46818.0,0.82819235]
[1641038447299,0.10127544,46819.0,46818.0,0.84847389]
[1641038447503,0.10127544,46819.0,46818.0,0.8304075]
[1641038448402,0.10127544,46819.0,46818.0,0.85130638]
[1641038448601,0.10127544,46819.0,46818.0,0.83102484]
[1641038449454,0.10127544,46819.0,46818.0,0.85262692]
[1641038449654,0.10127544,46819.0,46818.0,0.83172804]
[1641038450455,0.00127544,46819.0,46818.0,0.85046531]
[1641038450656,0.00127544,46819.0,46818.0,0.82886323]
[1641038451457,0.10127544,46819.0,46818.0,0.84807711]
[1641038451658,0.10127544,46819.0,46818.0,0.51613954]
[1641038451858,0.10127544,46819.0,46818.0,0.521151]
[1641038452605,0.10127544,46819.0,46818.0,0.81025972]
[1641038452795,0.10127544,46819.0,46818.0,0.521151]
[1641038452995,0.10127544,46819.0,46818.0,0.54039227]
[1641038453196,0.10127544,46819.0,46818.0,0.52117839]
[1641038453396,0.10127544,46819.0,46818.0,0.54176026]
[1641038453596,0.10127544,46819.0,46818.0,0.52251899]
[1641038454403,0.10127544,46819.0,46818.0,0.82926549]
[1641038454599,0.00127544,46819.0,46818.0,1.93768362]
[1641038455401,0.00127544,46819.0,46818.0,1.95767997]
[1641038455600,0.00127544,46819.0,46818.0,1.93955153]
[1641038456444,0.00127544,46819.0,46818.0,2.46014642]
[1641038456644,0.00127544,46819.0,46818.0,2.44015007]
[1641038457445,0.00127544,46819.0,46818.0,2.45929107]
[1641038457646,0.00127544,46819.0,46818.0,2.43869618]
[1641038458246,0.00127544,46819.0,46818.0,1.30969618]
[1641038458446,0.10127544,46819.0,46818.0,1.30969618]
[1641038458648,0.10127544,46819.0,46818.0,1.02107812]